fUST/lending_fUST_20251217
["ID","MTS","AMOUNT","RATE_DAILY","PERIOD"]
[398855804,1765924232960,-1061.37152,0.0001215,2]
[398855805,1765924232973,-1061.37152,0.0001215,2]
[398855806,1765924232982,-1061.37152,0.0001215,2]
[398855807,1765924232991,-151.0,0.0001215,2]
[398855808,1765924233001,-84377.67758155,0.0001225,2]
[398855836,1765924237963,-338.84055212,0.00010535,2]
[398855843,1765924238024,-203.307043,0.00010535,2]
[398855846,1765924238035,-500.0,0.00010535,2]
[398855848,1765924238044,-420.07453413,0.00010535,2]
[398855850,1765924238054,-183.0353705,0.00010959,2]
[398855852,1765924238063,-405.78636246,0.0001215,2]
[398855854,1765924238073,-28031.55518634,0.0001225,2]
[398855856,1765924238084,-22045.2675253,0.0001225,2]
[398855858,1765924238093,-151.0,0.0001225,2]
[398855860,1765924238102,-151.0,0.0001225,2]
[398855862,1765924238112,-1061.37152,0.0001225,2]
[398855864,1765924238121,-111.65469516,0.0001225,2]
[398855866,1765924238132,-333.71912776,0.0001225,2]
[398855868,1765924238143,-615.99769708,0.0001225,2]
[398855870,1765924238152,-1061.37152,0.0001225,2]
[398855872,1765924238161,-1061.37152,0.0001225,2]
[398855874,1765924238170,-175.638292,0.0001225,2]
[398855875,1765924238181,-198.08824625,0.00012273,2]
[398855877,1765924238190,-160.0,0.00012273,2]
[398855879,1765924238199,-151.1,0.000123,2]
[398855881,1765924238208,-153.14,0.00012329,2]
[398855883,1765924238218,-765.72,0.00012329,2]
[398855885,1765924238227,-477.07272467,0.00012354,2]
[398855887,1765924238239,-76.5710134,0.00012354,2]
[398855889,1765924238249,-1284.76885013,0.00012369,2]
[398855891,1765924238258,-906.75600224,0.00012539,2]
[398855893,1765924238268,-151.0,0.00012542,2]
[398855895,1765924238277,-191.029062,0.00012542,2]
[398855897,1765924238286,-1061.37152,0.00012545,2]
[398855899,1765924238295,-1061.37152,0.00012545,2]
[398855901,1765924238304,-1061.37152,0.00012545,2]
[398855903,1765924238313,-1061.37152,0.00012545,2]
[398855905,1765924238322,-208.9984,0.00012545,2]
[398855907,1765924238331,-1096.3005907,0.00012545,2]
[398855909,1765924238341,-8684.09000143,0.00012545,2]
[398855911,1765924238356,-890.15205145,0.00012545,2]
[398855914,1765924238367,-281.00478041,0.00012545,2]
[398856096,1765924240057,-303.59,0.00012545,2]
[398856104,1765924240120,-1499.98806,0.00012545,2]
[398856106,1765924240131,-355.07096111,0.00012545,2]
[398856108,1765924240140,-668.52633573,0.00012545,2]
[398856163,1765924242920,-5770.69038327,0.00012545,2]
[398856164,1765924242930,-151.1,0.000126,2]
[398856165,1765924242940,-226.14450194,0.0001265,2]
[398856166,1765924242949,-1284.76885013,0.00012683,2]
[398856167,1765924242960,-500.0,0.0001269,2]
[398856168,1765924242973,-500.0,0.0001269,2]
[398856169,1765924242982,-524.0959246,0.00012695,2]
[398856170,1765924242991,-151.1,0.000128,2]
[398856171,1765924243001,-405.78636243,0.00012817,2]
[398856172,1765924243011,-267.94983324,0.0001284,2]
[398856173,1765924243021,-151.0,0.000129,2]
[398856174,1765924243032,-151.0,0.000129,2]
[398856175,1765924243042,-574.12855637,0.00012902,2]
[398856176,1765924243053,-1284.76885013,0.00012996,2]
[398856177,1765924243062,-864.0,0.00013005,2]
[398856178,1765924243071,-823.0,0.00013063,2]
[398856179,1765924243080,-151.1,0.000131,2]
[398856180,1765924243089,-151.0,0.000132,2]
[398856181,1765924243098,-151.0,0.000132,2]
[398856183,1765924243107,-500.0,0.00013273,2]
[398856185,1765924243117,-500.0,0.00013273,2]
[398856187,1765924243126,-500.0,0.00013273,2]
[398856189,1765924243135,-500.0,0.00013273,2]
[398856190,1765924243145,-500.0,0.00013273,2]
[398856191,1765924243155,-500.0,0.00013273,2]
[398856192,1765924243165,-447.3637109,0.00013273,2]
[398856193,1765924243174,-500.0,0.00013273,2]
[398856194,1765924243183,-500.0,0.00013273,2]
[398856195,1765924243192,-500.0,0.00013273,2]
[398856196,1765924243203,-500.0,0.00013273,2]
[398856197,1765924243213,-500.0,0.00013273,2]
[398856198,1765924243223,-500.0,0.00013273,2]
[398856199,1765924243232,-500.0,0.00013273,2]
[398856200,1765924243241,-500.0,0.00013273,2]
[398856201,1765924243251,-500.0,0.00013273,2]
[398856202,1765924243260,-500.0,0.00013273,2]
[398856203,1765924243269,-500.0,0.00013273,2]
[398856204,1765924243278,-500.0,0.00013273,2]
[398856205,1765924243287,-500.0,0.00013273,2]
[398856206,1765924243296,-500.0,0.00013273,2]
[398856207,1765924243306,-500.0,0.00013273,2]
[398856208,1765924243315,-500.0,0.00013273,2]
[398856209,1765924243325,-500.0,0.00013273,2]
[398856210,1765924243335,-500.0,0.00013273,2]
[398856211,1765924243344,-500.0,0.00013273,2]
[398856212,1765924243353,-500.0,0.00013273,2]
[398856213,1765924243362,-500.0,0.00013273,2]
[398856214,1765924243371,-500.0,0.00013273,2]
[398856215,1765924243380,-500.0,0.00013273,2]
[398856216,1765924243390,-500.0,0.00013273,2]
[398856217,1765924243399,-166.22313344,0.00013273,2]
[398856218,1765924243409,-500.0,0.00013273,2]
[398856219,1765924243420,-500.0,0.00013273,2]
[398856220,1765924243429,-500.0,0.00013273,2]
[398856221,1765924243440,-210.19895855,0.00013273,2]
[398856222,1765924243449,-500.0,0.00013273,2]
[398856223,1765924243458,-501.7299145,0.00013273,2]
[398856224,1765924243468,-500.0,0.00013273,2]
[398856225,1765924243477,-493.70236795,0.00013273,2]
[398856226,1765924245989,-6.29763205,0.00013273,2]
[398856227,1765924245998,-500.0,0.00013273,2]
[398856228,1765924246007,-500.0,0.00013273,2]
[398856229,1765924246016,-500.0,0.00013273,2]
[398856230,1765924246026,-500.0,0.00013273,2]
[398856231,1765924246034,-500.0,0.00013273,2]
[398856232,1765924246043,-500.0,0.00013273,2]
[398856233,1765924246051,-500.0,0.00013273,2]
[398856234,1765924246060,-393.29226621,0.00013273,2]
[398856235,1765924246069,-500.0,0.00013273,2]
[398856236,1765924246078,-500.0,0.00013273,2]
[398856237,1765924246086,-100.41010174,0.00013273,2]
[398856238,1765924246126,-399.58989826,0.00013273,2]
[398856239,1765924246135,-151.0,0.00013273,2]
[398856240,1765924246144,-301.19733955,0.00013273,2]
[398856241,1765924246165,-760.17418045,0.00013273,2]
[398856242,1765924246174,-1061.37152,0.00013273,2]
[398856243,1765924246183,-1061.37152,0.00013273,2]
[398856244,1765924246192,-1061.37152,0.00013273,2]
[398856245,1765924246201,-151.1,0.000133,2]
[398856246,1765924246210,-1286.05361898,0.00013309,2]
[398856247,1765924246219,-1061.37152,0.00013439,2]
[398856248,1765924246227,-1061.37152,0.00013439,2]
[398856249,1765924246237,-1061.37152,0.00013439,2]
[398856250,1765924246246,-1061.37152,0.00013439,2]
[398856251,1765924246255,-595.37131296,0.0001345,2]
[398856252,1765924246264,-405.78636243,0.00013483,2]
[398856253,1765924246272,-151.0,0.000135,2]
[398856254,1765924246282,-151.0,0.000135,2]
[398856255,1765924246291,-800.0,0.00013569,2]
[398856256,1765924246299,-151.1,0.000136,2]
[398856257,1765924246308,-300.0,0.00013673,2]
[398856258,1765924246317,-151.0,0.00013677,2]
[398856259,1765924246325,-353.82423985,0.00013692,2]
[398856260,1765924246335,-152.0,0.00013695,2]
[398856261,1765924246344,-152.0,0.00013695,2]
[398856262,1765924246352,-152.0,0.00013695,2]
[398856263,1765924246361,-152.0,0.00013695,2]
[398856264,1765924246370,-152.0,0.00013695,2]
[398856265,1765924246379,-152.0,0.00013695,2]
[398856266,1765924246387,-152.0,0.00013695,2]
[398856267,1765924246396,-152.0,0.00013695,2]
[398856268,1765924246405,-204.51062788,0.00013695,2]
[398856269,1765924246414,-151.0,0.00013695,2]
[398856270,1765924246422,-151.0,0.00013695,2]
[398856271,1765924246431,-151.0,0.00013695,2]
[398856272,1765924246440,-151.0,0.00013695,2]
[398856273,1765924246448,-151.0,0.00013695,2]
[398856274,1765924246457,-334.0,0.00013695,2]
[398856275,1765924246465,-151.0,0.00013695,2]
[398856276,1765924246474,-334.0,0.00013695,2]
[398856277,1765924246484,-151.0,0.00013695,2]
[398856278,1765924246494,-151.0,0.00013695,2]
[398856279,1765924246503,-151.0,0.00013695,2]
[398856280,1765924246512,-151.0,0.00013695,2]
[398856281,1765924246521,-151.0,0.00013695,2]
[398856282,1765924246530,-151.0,0.00013695,2]
[398856283,1765924246540,-151.0,0.00013695,2]
[398856284,1765924246549,-151.0,0.00013695,2]
[398856285,1765924246559,-334.0,0.00013695,2]
[398856286,1765924246568,-151.0,0.00013695,2]
[398856287,1765924246577,-334.0,0.00013695,2]
[398856288,1765924246586,-151.0,0.00013695,2]
[398856289,1765924246595,-334.0,0.00013695,2]
[398856290,1765924246604,-151.0,0.00013695,2]
[398856291,1765924246613,-334.0,0.00013695,2]
[398856292,1765924246622,-151.0,0.00013695,2]
[398856293,1765924246631,-334.0,0.00013695,2]
[398856294,1765924246641,-151.0,0.00013695,2]
[398856295,1765924246650,-334.0,0.00013695,2]
[398856296,1765924246659,-151.0,0.00013695,2]
[398856297,1765924246667,-151.0,0.00013695,2]
[398856298,1765924246676,-334.0,0.00013695,2]
[398856299,1765924246685,-282.0,0.00013695,2]
[398856300,1765924246694,-334.0,0.00013695,2]
[398856301,1765924246703,-334.0,0.00013695,2]
[398856302,1765924246712,-334.0,0.00013695,2]
[398856303,1765924246721,-334.0,0.00013695,2]
[398856304,1765924246730,-334.0,0.00013695,2]
[398856305,1765924246739,-334.0,0.00013695,2]
[398856306,1765924246748,-334.0,0.00013695,2]
[398856307,1765924246757,-459.87170035,0.00013695,2]
[398856308,1765924246766,-166.0,0.00013695,2]
[398856309,1765924246775,-166.0,0.00013695,2]
[398856310,1765924246784,-174.0,0.00013695,2]
[398856311,1765924246793,-167.07685419,0.00013695,2]
[398856312,1765924246802,-174.0,0.00013695,2]
[398856313,1765924246811,-176.68926737,0.00013695,2]
[398856314,1765924246820,-166.0,0.00013695,2]
[398856315,1765924246828,-344.0,0.00013695,2]
[398856316,1765924246838,-151.0,0.00013695,2]
[398856317,1765924246847,-152.0,0.00013695,2]
[398856318,1765924246857,-156.0,0.00013695,2]
[398856319,1765924246866,-344.0,0.00013695,2]
[398856320,1765924246875,-271.51257598,0.00013695,2]
[398856321,1765924246884,-166.89680406,0.00013695,2]
[398856322,1765924246893,-156.0,0.00013695,2]
[398856323,1765924246902,-269.85541096,0.00013695,2]
[398856324,1765924246911,-344.0,0.00013695,2]
[398856325,1765924246919,-156.0,0.00013695,2]
[398856326,1765924246928,-344.0,0.00013695,2]
[398856327,1765924246937,-156.0,0.00013695,2]
[398856328,1765924246946,-156.0,0.00013695,2]
[398856329,1765924246955,-152.0,0.00013695,2]
[398856330,1765924246966,-156.0,0.00013695,2]
[398856331,1765924246977,-152.0,0.00013695,2]
[398856332,1765924246986,-156.0,0.00013695,2]
[398856333,1765924246994,-152.0,0.00013695,2]
[398856334,1765924247003,-156.0,0.00013695,2]
[398856335,1765924247013,-152.0,0.00013695,2]
[398856336,1765924247021,-156.0,0.00013695,2]
[398856337,1765924247030,-152.0,0.00013695,2]
[398856338,1765924247041,-334.0,0.00013695,2]
[398856339,1765924247051,-156.0,0.00013695,2]
[398856340,1765924247060,-152.0,0.00013695,2]
[398856341,1765924247069,-334.0,0.00013695,2]
[398856342,1765924247078,-156.0,0.00013695,2]
[398856343,1765924247087,-334.0,0.00013695,2]
[398856344,1765924247095,-152.0,0.00013695,2]
[398856345,1765924247105,-156.0,0.00013695,2]
[398856346,1765924247113,-334.0,0.00013695,2]
[398856347,1765924247122,-152.0,0.00013695,2]
[398856348,1765924247131,-167.35208145,0.00013695,2]
[398856349,1765924247140,-152.0,0.00013695,2]
[398856350,1765924247149,-152.0,0.00013695,2]
[398856351,1765924247158,-334.0,0.00013695,2]
[398856352,1765924247167,-152.0,0.00013695,2]
[398856353,1765924247176,-334.0,0.00013695,2]
[398856354,1765924247185,-152.0,0.00013695,2]
[398856355,1765924247194,-152.0,0.00013695,2]
[398856356,1765924247203,-334.0,0.00013695,2]
[398856357,1765924247212,-152.0,0.00013695,2]
[398856358,1765924247221,-334.0,0.00013695,2]
[398856359,1765924247230,-152.0,0.00013695,2]
[398856360,1765924247239,-334.0,0.00013695,2]
[398856361,1765924247247,-152.0,0.00013695,2]
[398856362,1765924247256,-334.0,0.00013695,2]
[398856363,1765924247265,-152.0,0.00013695,2]
[398856364,1765924247275,-334.0,0.00013695,2]
[398856365,1765924247284,-334.0,0.00013695,2]
[398856366,1765924247293,-83.02827884,0.00013695,2]
[398856367,1765924247306,-250.97172116,0.00013695,2]
[398856368,1765924247314,-54.02827885,0.00013695,2]
[398856369,1765924247326,-279.97172115,0.00013695,2]
[398856370,1765924247335,-334.0,0.00013695,2]
[398856371,1765924247344,-334.0,0.00013695,2]
[398856372,1765924247353,-334.0,0.00013695,2]
[398856373,1765924247362,-152.74196728,0.00013695,2]
[398856391,1765925242135,-462.10534614,0.0001,2]
[398856448,1765925432152,-151.1,0.0001,2]
[398856452,1765925432402,-272.32994635,0.00010046,2]
[398856455,1765925432414,-8.53265301,0.00010046,2]
[398856456,1765925432423,-652.202018,0.00010589,2]
[398856459,1765925432432,-238.0,0.00010743,2]
[398856460,1765925432442,-300.0,0.00010743,2]
[398856461,1765925432451,-500.0,0.00010744,2]
[398856462,1765925432460,-500.0,0.00010744,2]
[398856463,1765925432470,-500.0,0.00010744,2]
[398856464,1765925432479,-500.0,0.00010744,2]
[398856465,1765925432488,-500.0,0.00010744,2]
[398856466,1765925432497,-500.0,0.00010744,2]
[398856467,1765925432507,-500.0,0.00010744,2]
[398856468,1765925432515,-450.41557237,0.00010744,2]
[398856469,1765925432524,-500.0,0.00010744,2]
[398856470,1765925432533,-500.0,0.00010744,2]
[398856471,1765925432542,-500.0,0.00010744,2]
[398856472,1765925432551,-500.0,0.00010744,2]
[398856473,1765925432560,-500.0,0.00010744,2]
[398856474,1765925432569,-500.0,0.00010744,2]
[398856475,1765925432578,-162.50270062,0.00010744,2]
[398856476,1765925432591,-463.57949107,0.00010744,2]
[398856477,1765925432600,-300.0,0.00010745,2]
[398856478,1765925432609,-300.0,0.00010745,2]
[398856479,1765925432617,-300.0,0.00010745,2]
[398856480,1765925432628,-300.0,0.00010745,2]
[398856481,1765925432636,-300.0,0.00010745,2]
[398856482,1765925432645,-300.0,0.00010745,2]
[398856483,1765925432654,-300.0,0.00010745,2]
[398856484,1765925432664,-300.0,0.00010745,2]
[398856485,1765925432672,-300.0,0.00010745,2]
[398856486,1765925432681,-300.0,0.00010745,2]
[398856487,1765925432690,-300.0,0.00010745,2]
[398856488,1765925432699,-300.0,0.00010745,2]
[398856489,1765925432707,-300.0,0.00010745,2]
[398856490,1765925432716,-300.0,0.00010745,2]
[398856491,1765925432725,-300.0,0.00010745,2]
[398856492,1765925432734,-600.0,0.00010745,2]
[398856493,1765925432742,-250.0,0.00010875,2]
[398856494,1765925432751,-250.0,0.00010875,2]
[398856495,1765925432760,-131.58198157,0.00010875,2]
[398856518,1765925438084,-383.25872712,0.00010875,2]
[398856520,1765925438093,-250.0,0.00010875,2]
[398856522,1765925438103,-500.0,0.00011099,2]
[398856524,1765925438112,-3.33490788,0.00011264,2]
[398856526,1765925438123,-229.01306672,0.00011264,2]
[398856528,1765925438133,-533.88981491,0.00011423,2]
[398856530,1765925438142,-500.0,0.00011482,2]
[398856532,1765925438151,-152.0,0.00011482,2]
[398856534,1765925438160,-614.05225468,0.000115,2]
[398856536,1765925438169,-2157.0,0.0001151,2]
[398856538,1765925438179,-1361.0,0.0001151,2]
[398856540,1765925438188,-632.0,0.0001151,2]
[398856542,1765925438198,-500.0,0.0001151,2]
[398856544,1765925438207,-500.0,0.00011619,2]
[398856546,1765925438216,-500.0,0.0001175,2]
[398856548,1765925438226,-342.19101841,0.0001175,2]
[398856550,1765925438235,-500.0,0.0001175,2]
[398856552,1765925438244,-337.065977,0.0001175,2]
[398856554,1765925438253,-500.0,0.00011751,2]
[398856556,1765925438262,-150.0,0.00011751,2]
[398856558,1765925438273,-150.0,0.00011751,2]
[398856560,1765925438282,-150.0,0.00011751,2]
[398856562,1765925438291,-150.0,0.00011751,2]
[398856564,1765925438300,-150.0,0.00011751,2]
[398856566,1765925438309,-150.0,0.00011751,2]
[398856568,1765925438318,-150.0,0.00011751,2]
[398856570,1765925438327,-500.0,0.00011751,2]
[398856572,1765925438336,-259.85475127,0.00011751,2]
[398856574,1765925438345,-150.0,0.00011751,2]
[398856576,1765925438355,-500.0,0.00011756,2]
[398856578,1765925438365,-500.0,0.00011757,2]
[398856580,1765925438374,-500.0,0.00011757,2]
[398856582,1765925438383,-150.0,0.00011757,2]
[398856584,1765925438392,-500.0,0.00011757,2]
[398856586,1765925438402,-500.0,0.00011757,2]
[398856588,1765925438411,-150.0,0.00011757,2]
[398856590,1765925438420,-500.0,0.00011757,2]
[398856592,1765925438429,-150.0,0.00011757,2]
[398856594,1765925438439,-150.0,0.00011757,2]
[398856596,1765925438448,-150.0,0.00011757,2]
[398856598,1765925438457,-500.0,0.00011784,2]
[398856601,1765925438467,-420.0,0.00011808,2]
[398856603,1765925438476,-720.0,0.00011819,2]
[398856604,1765925438486,-500.0,0.00011888,2]
[398856606,1765925438495,-150.0,0.00011888,2]
[398856608,1765925438507,-153.33266293,0.00011888,2]
[398856610,1765925438516,-150.0,0.00011888,2]
[398856612,1765925438525,-150.0,0.00011888,2]
[398856614,1765925438534,-150.0,0.00011888,2]
[398856616,1765925438543,-199.84203383,0.00011888,2]
[398856618,1765925438552,-150.0,0.00011888,2]
[398856620,1765925438562,-500.0,0.00011888,2]
[398856622,1765925438571,-212.45464737,0.00011888,2]
[398856624,1765925438580,-500.0,0.00011894,2]
[398856626,1765925438593,-500.0,0.00011894,2]
[398856628,1765925438602,-150.0,0.00011894,2]
[398856630,1765925438611,-500.0,0.00011894,2]
[398856632,1765925438622,-500.0,0.00011894,2]
[398856635,1765925438631,-150.0,0.00011894,2]
[398856636,1765925438640,-500.0,0.00011894,2]
[398856639,1765925438649,-150.0,0.00011894,2]
[398856641,1765925438660,-150.0,0.00011894,2]
[398856642,1765925438669,-150.0,0.00011894,2]
[398856644,1765925438678,-269001.22224748,0.00011932,2]
[398856647,1765925438688,-17704.95008492,0.00011932,2]
[398856649,1765925438697,-553.64373807,0.00011971,2]
[398856650,1765925438706,-500.0,0.00012025,2]
[398856652,1765925438715,-150.0,0.00012025,2]
[398856655,1765925438725,-150.0,0.00012025,2]
[398856657,1765925438734,-150.0,0.00012025,2]
[398856659,1765925438744,-153.52713657,0.00012025,2]
[398856660,1765925438753,-169.95229559,0.00012025,2]
[398856662,1765925438763,-500.0,0.00012025,2]
[398856664,1765925438772,-184.773,0.00012031,2]
[398856666,1765925438782,-500.0,0.00012031,2]
[398856668,1765925438791,-500.0,0.00012031,2]
[398856670,1765925438800,-150.0,0.00012031,2]
[398856672,1765925438810,-500.0,0.00012031,2]
[398856675,1765925438819,-500.0,0.00012031,2]
[398856676,1765925438829,-154.32685488,0.00012031,2]
[398856679,1765925438838,-500.0,0.00012031,2]
[398856680,1765925438847,-150.0,0.00012031,2]
[398856683,1765925438857,-154.00802856,0.00012031,2]
[398856684,1765925438866,-150.0,0.00012031,2]
[398856686,1765925438877,-180.368,0.00012031,2]
[398856688,1765925438887,-331.41786724,0.00012046,2]
[398856691,1765925438897,-299.03292114,0.0001207,2]
[398856692,1765925438906,-614.05225468,0.00012084,2]
[398856694,1765925438915,-500.0,0.00012162,2]
[398856696,1765925438925,-265.0936571,0.00012162,2]
[398856699,1765925438934,-150.0,0.00012162,2]
[398856700,1765925438944,-150.0,0.00012162,2]
[398856703,1765925438954,-534.73556782,0.00012162,2]
[398856705,1765925438964,-500.0,0.00012168,2]
[398856707,1765925438973,-500.0,0.00012168,2]
[398856709,1765925438983,-150.0,0.00012168,2]
[398856711,1765925438993,-229.75315617,0.00012168,2]
[398856713,1765925439003,-330.82650792,0.00012168,2]
[398856714,1765925439012,-500.0,0.00012168,2]
[398856717,1765925439022,-150.0,0.00012168,2]
[398856719,1765925439031,-150.0,0.00012168,2]
[398856721,1765925439041,-198.08824625,0.00012289,2]
[398856723,1765925439051,-300.51441089,0.00012299,2]
[398856725,1765925439061,-156.09789928,0.00012299,2]
[398856727,1765925439070,-150.0,0.00012299,2]
[398856729,1765925439079,-500.0,0.00012305,2]
[398856731,1765925439088,-500.0,0.00012305,2]
[398856733,1765925439097,-206.69213397,0.00012305,2]
[398856735,1765925439106,-500.0,0.00012305,2]
[398856736,1765925439115,-150.0,0.00012305,2]
[398856739,1765925439125,-159.50130545,0.00012305,2]
[398856741,1765925439135,-1107.17,0.00012329,2]
[398856742,1765925439143,-922.64,0.00012329,2]
[398856745,1765925439153,-768.87,0.00012329,2]
[398856747,1765925439162,-640.73,0.00012329,2]
[398856748,1765925439171,-533.94,0.00012329,2]
[398856750,1765925439180,-444.95,0.00012329,2]
[398856752,1765925439189,-370.79,0.00012329,2]
[398856754,1765925439198,-308.99,0.00012329,2]
[398856756,1765925439207,-257.49,0.00012329,2]
[398856758,1765925439216,-214.58,0.00012329,2]
[398856760,1765925439225,-178.81,0.00012329,2]
[398856762,1765925439234,-894.1,0.00012329,2]
[398856764,1765925439243,-206.36371327,0.00012436,2]
[398856766,1765925439252,-500.0,0.00012442,2]
[398856768,1765925439261,-500.0,0.00012442,2]
[398856770,1765925439271,-500.0,0.00012442,2]
[398856772,1765925439279,-250.0,0.00012442,2]
[398856774,1765925439288,-574.12855637,0.00012519,2]
[398856776,1765925439298,-2113.959181,0.00012573,2]
[398856778,1765925439307,-2113.959181,0.00012573,2]
[398856780,1765925439315,-2113.959181,0.00012573,2]
[398856782,1765925439324,-2113.959181,0.00012573,2]
[398856784,1765925439334,-500.0,0.00012579,2]
[398856786,1765925439342,-443.22419836,0.00012579,2]
[398856788,1765925439351,-543.98673699,0.00012579,2]
[398856790,1765925439360,-5186.15832291,0.00012593,3]
[398856792,1765925439369,-614.05225468,0.00012668,2]
[398856794,1765925439378,-151.0,0.000127,2]
[398856796,1765925439387,-151.0,0.000129,2]
[398856798,1765925439396,-151.0,0.000129,2]
[398856800,1765925439406,-151.0,0.000129,2]
[398856802,1765925439415,-151.0,0.000129,2]
[398856804,1765925439425,-151.0,0.000129,2]
[398856806,1765925439434,-12827.36730929,0.000129,2]
[398856808,1765925439443,-587.0,0.0001298,2]
[398856810,1765925439452,-340.88900539,0.00012983,3]
[398856812,1765925439461,-151.0,0.00013,2]
[398856815,1765925439471,-864.0,0.00013001,2]
[398856816,1765925439480,-595.37131296,0.00013067,2]
[398856818,1765925439491,-151.0,0.000131,2]
[398856820,1765925439502,-151.0,0.000132,2]
[398856823,1765925439512,-3558.92988729,0.00013239,2]
[398856825,1765925439521,-614.05225468,0.00013251,2]
[398856827,1765925439530,-495.92303992,0.00013273,2]
[398856829,1765925439539,-554.06594158,0.00013273,2]
[398856830,1765925439548,-500.0,0.00013273,2]
[398856832,1765925439557,-500.0,0.00013273,2]
[398856834,1765925439566,-500.0,0.00013273,2]
[398856836,1765925439576,-500.0,0.00013273,2]
[398856839,1765925439591,-500.0,0.00013273,2]
[398856840,1765925439601,-500.0,0.00013273,2]
[398856842,1765925439611,-500.0,0.00013273,2]
[398856844,1765925439620,-500.0,0.00013273,2]
[398856846,1765925439629,-500.0,0.00013273,2]
[398856849,1765925439639,-500.0,0.00013273,2]
[398856850,1765925439650,-500.0,0.00013273,2]
[398856853,1765925439660,-500.0,0.00013273,2]
[398856855,1765925439669,-500.0,0.00013273,2]
[398856857,1765925439679,-500.0,0.00013273,2]
[398856858,1765925439688,-500.0,0.00013273,2]
[398856861,1765925439698,-500.0,0.00013273,2]
[398856862,1765925439707,-500.0,0.00013273,2]
[398856865,1765925439716,-500.0,0.00013273,2]
[398856866,1765925439725,-500.0,0.00013273,2]
[398856868,1765925439734,-500.0,0.00013273,2]
[398856870,1765925439743,-500.0,0.00013273,2]
[398856872,1765925439752,-500.0,0.00013273,2]
[398856874,1765925439762,-500.0,0.00013273,2]
[398856877,1765925439771,-500.0,0.00013273,2]
[398856878,1765925439780,-500.0,0.00013273,2]
[398856880,1765925439789,-500.0,0.00013273,2]
[398856882,1765925439799,-500.0,0.00013273,2]
[398856884,1765925439808,-500.0,0.00013273,2]
[398856886,1765925439817,-500.0,0.00013273,2]
[398856888,1765925439826,-500.0,0.00013273,2]
[398856891,1765925439836,-500.0,0.00013273,2]
[398856893,1765925439845,-500.0,0.00013273,2]
[398856895,1765925439854,-500.0,0.00013273,2]
[398856897,1765925439863,-322.4969226,0.00013273,2]
[398856898,1765925439872,-500.0,0.00013273,2]
[398856900,1765925439882,-500.0,0.00013273,2]
[398856903,1765925439891,-500.0,0.00013273,2]
[398856906,1765925439904,-500.0,0.00013273,2]
[398856908,1765925439913,-500.0,0.00013273,2]
[398856910,1765925439923,-500.0,0.00013273,2]
[398856912,1765925439932,-500.0,0.00013273,2]
[398856914,1765925439942,-500.0,0.00013273,2]
[398856916,1765925439951,-500.0,0.00013273,2]
[398856918,1765925439961,-500.0,0.00013273,2]
[398856920,1765925439970,-500.0,0.00013273,2]
[398856922,1765925439979,-2113.959181,0.00013273,2]
[398856924,1765925439988,-2113.959181,0.00013273,2]
[398856926,1765925439997,-2113.959181,0.00013273,2]
[398856928,1765925440007,-2113.959181,0.00013273,2]